[Event "German Bundesliga 2024-25"]
[Site "Germany"]
[Date "2024.11.30"]
[Round "3.1"]
[White "Nguyen, Thai Dai Van"]
[Black "Kollars, Dmitrij"]
[Result "0-1"]
[Annotator "ChessBase"]
[ECO "A20"]
[WhiteElo "2670"]
[BlackElo "2641"]
[PlyCount "78"]
[EventDate "2024.09.27"]
[EventType "team-tourn"]
[EventCountry "GER"]
[SourceTitle "playchess.com"]
[Source "ChessBase"]
[SourceQuality "1"]
[WhiteTeam "TU Dresden"]
[BlackTeam "Deizisau"]
[TimeControl "40/5400+30:1800+30"]

1. c4 {[%emt 0:00:08]} e5 {[%emt 0:00:34]} 2. g3 {[%emt 0:00:08]} c6 {[%emt 0:00:38]} 3. d4 {[%emt 0:00:09]} Bb4+ {[%emt 0:00:54]} 4. Bd2 {[%emt 0:00:10]} Bxd2+ {[%emt 0:00:14]} 5. Qxd2 {[%emt 0:00:10]} d6 {[%emt 0:00:24]} 6. Nc3 {[%emt 0:00:43]} Nf6 {[%emt 0:01:12]} 7. Bg2 {[%emt 0:00:29]} O-O {[%emt 0:02:09]} 8. dxe5 {[%emt 0:00:22]} dxe5 {[%emt 0:00:09]} 9. Qxd8 {[%emt 0:00:06]} Rxd8 {[%emt 0:00:04]} 10. Nf3 {[%emt 0:00:12]} Re8 {[%emt 0:09:28]} 11. b4 {[%emt 0:14:58]} Bf5 {[%emt 0:09:07]} 12. Nd2 {[%emt 0:09:07]} Nbd7 {[%emt 0:02:13]} 13. Nb3 {[%emt 0:01:28]} Rac8 {[%emt 0:00:55]} 14. Na5 {[%emt 0:08:11]} Rc7 {[%emt 0:02:31]} 15. O-O {[%emt 0:03:56]} Be6 {[%emt 0:18:45]} 16. Rfc1 {[%emt 0:19:40]} Rec8 {[%emt 0:06:13]} 17. c5 {[%emt 0:10:03]} Kf8 {[%emt 0:04:45]} 18. Rab1 {[%emt 0:03:53]} Ke7 {[%emt 0:04:53]} 19. a4 {[%emt 0:02:40]} b6 {[%emt 0:10:47]} 20. cxb6 {[%emt 0:00:49]} axb6 {[%emt 0:00:10]} 21. Nb3 {[%emt 0:00:05]} Nd5 {[%emt 0:01:19]} 22. Nd2 {[%emt 0:11:37]} Nxc3 {[%emt 0:03:23]} 23. Rxc3 {[%emt 0:00:11]} c5 {[%emt 0:00:11]} 24. a5 {[%emt 0:06:22]} cxb4 {[%emt 0:07:14]} 25. Rxc7 {[%emt 0:00:04]} Rxc7 {[%emt 0:00:05]} 26. axb6 {[%emt 0:00:14]} Rc2 {[%emt 0:01:40]} 27. Nf1 {[%emt 0:01:54]} b3 {[%emt 0:01:17]} 28. b7 {[%emt 0:05:26]} Kd6 {[%emt 0:02:24]} 29. Ne3 {[%emt 0:00:29]} Rc5 {[%emt 0:00:54]} 30. Be4 {[%emt 0:00:52]} Rb5 {[%emt 0:01:15]} 31. Rd1+ {[%emt 0:00:30]} Kc7 {[%emt 0:00:08]} 32. Rc1+ {[%emt 0:00:35]} Nc5 {[%emt 0:01:29]} 33. Nd1 {[%emt 0:00:27]} Kd6 {[%emt 0:03:32]} 34. Nc3 {[%emt 0:00:33]} Rb4 {[%emt 0:00:34]} 35. Rd1+ {[%emt 0:00:40]} Kc7 {[%emt 0:00:03]} 36. Nd5+ {[%emt 0:00:36]} Bxd5 {[%emt 0:00:06]} 37. Bxd5 {[%emt 0:00:09]} b2 {[%emt 0:03:15]} 38. Ba2 {[%emt 0:00:16]} Na4 {[%emt 0:00:31]} 39. Rd5 {[%emt 0:00:50]} Kxb7 {[%emt 0:01:36]} 0-1

[Event "German Bundesliga 2024-25"]
[Site "Germany"]
[Date "2024.11.30"]
[Round "3.1"]
[White "Saric, Ivan"]
[Black "Bogosavljevic, Boban"]
[Result "1-0"]
[Annotator "ChessBase"]
[ECO "B27"]
[WhiteElo "2668"]
[BlackElo "2480"]
[PlyCount "81"]
[EventDate "2024.09.27"]
[EventType "team-tourn"]
[EventCountry "GER"]
[SourceTitle "playchess.com"]
[Source "ChessBase"]
[SourceQuality "1"]
[WhiteTeam "Kirchweyhe"]
[BlackTeam "Deggendorf"]
[TimeControl "40/5400+30:1800+30"]

1. e4 {[%emt 0:00:03]} c5 {[%emt 0:00:12]} 2. Nf3 {[%emt 0:00:05]} g6 {[%emt 0:00:15]} 3. c3 {[%emt 0:01:10]} d5 {[%emt 0:00:12]} 4. e5 {[%emt 0:00:04]} Bg4 {[%emt 0:00:45]} 5. Bb5+ {[%emt 0:02:20]} Nc6 {[%emt 0:00:17]} 6. O-O {[%emt 0:01:04]} Bg7 {[%emt 0:07:37]} 7. d4 {[%emt 0:05:40]} Qb6 {[%emt 0:08:40]} 8. Bxc6+ {[%emt 0:00:47]} bxc6 {[%emt 0:00:51]} 9. Nbd2 {[%emt 0:01:22]} cxd4 {[%emt 0:27:51]} 10. cxd4 {[%emt 0:00:24]} Nh6 {[%emt 0:00:18]} 11. h3 {[%emt 0:03:32]} Bxf3 {[%emt 0:00:46]} 12. Nxf3 {[%emt 0:00:03]} O-O {[%emt 0:01:55]} 13. Bf4 {[%emt 0:13:15]} f6 {[%emt 0:07:59]} 14. Qd2 {[%emt 0:01:10]} Nf5 {[%emt 0:03:14]} 15. e6 {[%emt 0:05:18]} Rfd8 {[%emt 0:05:47]} 16. Rfe1 {[%emt 0:11:27]} a5 {[%emt 0:03:22]} 17. Rac1 {[%emt 0:00:51]} Nd6 {[%emt 0:02:43]} 18. Bxd6 {[%emt 0:12:50]} Rxd6 {[%emt 0:00:06]} 19. Rc3 {[%emt 0:00:23]} a4 {[%emt 0:02:58]} 20. h4 {[%emt 0:00:09]} Rb8 {[%emt 0:06:08]} 21. Re2 {[%emt 0:03:03]} Qa6 {[%emt 0:01:14]} 22. h5 {[%emt 0:01:28]} g5 {[%emt 0:00:19]} 23. Qc2 {[%emt 0:02:05]} Rb4 {[%emt 0:03:32]} 24. g4 {[%emt 0:04:12]} c5 {[%emt 0:08:17]} 25. a3 {[%emt 0:01:46]} Rb3 {[%emt 0:03:12]} 26. dxc5 {[%emt 0:02:25]} Rxc3 {[%emt 0:00:43]} 27. bxc3 {[%emt 0:01:27]} Rxe6 {[%emt 0:00:07]} 28. Rxe6 {[%emt 0:01:18]} Qxe6 {[%emt 0:00:04]} 29. Qxa4 {[%emt 0:02:18]} Qc8 {[%emt 0:03:28]} 30. c6 {[%emt 0:00:45]} e5 {[%emt 0:00:35]} 31. Kf1 {[%emt 0:00:31]} e4 {[%emt 0:00:36]} 32. Nd4 {[%emt 0:02:18]} Qxg4 {[%emt 0:00:06]} 33. Qb3 {[%emt 0:00:54]} Qh3+ {[%emt 0:02:15]} 34. Ke1 {[%emt 0:00:16]} Bf8 {[%emt 0:00:21]} 35. c7 {[%emt 0:03:17]} e3 {[%emt 0:00:43]} 36. Qxd5+ {[%emt 0:00:47]} Kh8 {[%emt 0:00:07]} 37. Qc6 {[%emt 0:05:13]} exf2+ {[%emt 0:00:53]} 38. Kxf2 {[%emt 0:00:05]} Qh2+ {[%emt 0:00:24]} 39. Ke1 {[%emt 0:00:36]} Qg1+ {[%emt 0:00:36]} 40. Kd2 {[%emt 0:00:12]} Qf2+ {[%emt 0:00:16]} 41. Kd1 {[%emt 0:30:27]} 1-0

[Event "German Bundesliga 2024-25"]
[Site "Germany"]
[Date "2024.11.30"]
[Round "3.1"]
[White "Ivic, Velimir"]
[Black "Livaic, Leon"]
[Result "1-0"]
[Annotator "ChessBase"]
[ECO "C41"]
[WhiteElo "2622"]
[BlackElo "2557"]
[PlyCount "51"]
[EventDate "2024.09.27"]
[EventType "team-tourn"]
[EventCountry "GER"]
[SourceTitle "playchess.com"]
[Source "ChessBase"]
[SourceQuality "1"]
[WhiteTeam "Werder Bremen"]
[BlackTeam "Heimbach-Weis-Neuwied"]
[TimeControl "40/5400+30:1800+30"]

1. e4 {[%emt 0:00:07]} d6 {[%emt 0:00:09]} 2. d4 {[%emt 0:00:20]} Nf6 {[%emt 0:00:05]} 3. Nc3 {[%emt 0:00:15]} e5 {[%emt 0:00:06]} 4. Nf3 {[%emt 0:00:33]} Nbd7 {[%emt 0:00:05]} 5. Rg1 {[%emt 0:00:53]} c6 {[%emt 0:00:39]} 6. g4 {[%emt 0:00:14]} h6 {[%emt 0:00:05]} 7. Qe2 {[%emt 0:01:05]} b5 {[%emt 0:08:36]} 8. a3 {[%emt 0:02:29]} Bb7 {[%emt 0:16:43]} 9. h4 {[%emt 0:05:24]} g6 {[%emt 0:02:03]} 10. g5 {[%emt 0:20:49]} hxg5 {[%emt 0:01:00]} 11. hxg5 {[%emt 0:00:17]} Nh5 {[%emt 0:00:17]} 12. Be3 {[%emt 0:03:20]} Qc7 {[%emt 0:12:12]} 13. O-O-O {[%emt 0:03:05]} Be7 {[%emt 0:10:34]} 14. Bh3 {[%emt 0:08:42]} Nb6 {[%emt 0:05:03]} 15. Rh1 {[%emt 0:06:50]} Rd8 {[%emt 0:05:18]} 16. Bg4 {[%emt 0:01:37]} Nc4 {[%emt 0:02:23]} 17. d5 {[%emt 0:08:33]} Nxe3 {[%emt 0:05:00]} 18. fxe3 {[%emt 0:00:35]} Rb8 {[%emt 0:02:42]} 19. Bxh5 {[%emt 0:04:30]} gxh5 {[%emt 0:00:13]} 20. Nh4 {[%emt 0:00:25]} cxd5 {[%emt 0:07:27]} 21. Nf5 {[%emt 0:06:13]} dxe4 {[%emt 0:04:53]} 22. Rxh5 {[%emt 0:03:18]} Rxh5 {[%emt 0:00:50]} 23. Qxh5 {[%emt 0:00:10]} Qd7 {[%emt 0:05:07]} 24. Qh8+ {[%emt 0:01:55]} Bf8 {[%emt 0:00:04]} 25. Nxd6+ {[%emt 0:00:05]} Ke7 {[%emt 0:00:05]} 26. Qf6# {[%emt 0:00:05]} 1-0

[Event "German Bundesliga 2024-25"]
[Site "Germany"]
[Date "2024.11.30"]
[Round "3.2"]
[White "Praggnanandhaa R"]
[Black "Svane, Rasmus"]
[Result "1-0"]
[Annotator "TA"]
[ECO "E29"]
[WhiteElo "2737"]
[BlackElo "2628"]
[PlyCount "69"]
[EventDate "2024.09.27"]
[EventType "team-tourn"]
[EventCountry "GER"]
[SourceTitle "playchess.com"]
[Source "ChessBase"]
[SourceQuality "1"]
[WhiteTeam "Duesseldorf"]
[BlackTeam "Hamburg"]
[TimeControl "40/5400+30:1800+30"]

{[%evp 18,69,0,0,6,9,14,20,29,21,36,39,36,20,61,50,80,52,60,23,58,-45,1,-87,-89,-92,-10,-79,-53,-49,0,0,-18,-40,20,15,33,51,255,275,323,281,347,344,1307,1246,2098,2051,29989,29990,29990,29991,29991,29992]} 1. d4 {[%emt 0:00:31]} Nf6 {[%emt 0:00:22]} 2. c4 {[%emt 0:00:09]} e6 {[%emt 0:00:08]} 3. Nc3 {[%emt 0:00:19]} Bb4 {[%emt 0:00:54]} 4. e3 {[%emt 0:00:07]} O-O {[%emt 0:00:46]} 5. a3 {[%emt 0:00:09]} Bxc3+ {[%emt 0:01:12]} 6. bxc3 {[%emt 0:00:02]} d6 {[%emt 0:05:13]} 7. f3 {[%emt 0:00:16]} c5 {[%emt 0:04:52]} 8. Bd3 {[%emt 0:08:16]} e5 {[%emt 0:12:17]} 9. Ne2 {[%emt 0:02:11]} Nc6 {[%emt 0:09:10]} 10. O-O {[%emt 0:01:42]} Ne8 {[%emt 0:11:13][%cal Bf6e8,Be8c7,Bc7e6][%mdl 32]} 11. e4 {[%emt 0:12:57]} cxd4 {[%emt 0:14:30]} 12. cxd4 {[%emt 0:00:13]} exd4 {[%emt 0:00:39] The position is equal.} 13. Bb2 {[%emt 0:10:38][%cal Od1d2]} Qb6 {[%emt 0:05:21]} 14. Rb1 {[%emt 0:01:37][%cal Ob2d4][%mdl 1024] White has compensation.} Qc5 {[%emt 0:00:42]} 15. Rf2 {[%emt 0:07:57]} Nc7 {[%emt 0:05:08]} 16. Bc2 $1 {[%emt 0:03:01][%cal Re2d4]} Ne6 {[%emt 0:02:49][%cal Oc8d7]} 17. f4 {[%emt 0:06:28]} f6 {[%emt 0:03:23][%cal Oc8d7]} 18. Ba1 {[%emt 0:08:37]} Qxa3 {[%emt 0:05:00]} 19. Rf3 {[%emt 0:09:33]} (19. Bxd4 Ncxd4 20. Nxd4 Nxd4 21. Qxd4 Be6 $16) (19. Nxd4 Ncxd4 20. Bxd4 Nxd4 21. Qxd4 Be6 $16) ({White should try} 19. f5 $1 $14 Ned8 20. Nxd4 (20. Bxd4 Nxd4 21. Qxd4 Kh8 $15)) 19... Qa5 {[%emt 0:01:09]} (19... Qc5 $15 {is more appropriate.} 20. Rf2 Nb4 (20... Qxc4 $2 {perishes.} 21. Bb3 $18)) 20. Rb5 {[%emt 0:00:10]} (20. f5 $11 {keeps the balance.} Nc5 21. Nxd4) 20... Qc7 $17 {[%emt 0:00:47]} 21. Rg3 {[%emt 0:02:02]} Qf7 {[%emt 0:06:44] Prevents Rh5.} (21... b6 $17 {Threatens to win with ...Ba6.} 22. Rh5 Nb4) 22. Bb1 {[%emt 0:12:23]} (22. Bb2 $11) 22... b6 {[%emt 0:01:15]} (22... Kh8 $5 23. Rd5 Rd8 $15) 23. Rd5 {[%emt 0:01:57][%cal Bb5d5,Bd5d4,Bd4d2,Bd2d6][%mdl 32]} Rd8 {[%emt 0:01:18]} (23... Bb7 $5) 24. f5 $36 {[%emt 0:03:07][%mdl 2048] White fights for an advantage.} Nc7 {[%emt 0:02:33]} 25. Nf4 $1 {[%emt 0:01:39][%cal Be2f4,Bf4h5,Bh5f4][%mdl 32]} Rd7 {[%emt 0:01:57] [#]} ({Better is} 25... Nxd5 $15 26. exd5 Ne5) 26. Nh5 $1 $11 {[%emt 0:02:20]} Qf8 {[%emt 0:00:27]} 27. Rxd4 {[%emt 0:00:14][%cal Oh5g7] Nxg7! is the strong threat.} Kh8 {[%emt 0:03:04] Black cannot hold the game after this.} ({Black should play} 27... Bb7 $14) 28. Rd2 $18 {[%emt 0:01:26]} Ne5 {[%emt 0:00:23] [#]} 29. Nf4 $1 {[%emt 0:01:11]} Qe8 {[%emt 0:00:38]} 30. Rxd6 {[%emt 0:02:08]} Qe7 $2 {[%emt 0:00:15] [#] Prevents c5.} (30... Nf7) 31. c5 $1 {[%emt 0:01:28][%mdl 512]} bxc5 {[%emt 0:00:20]} (31... Qf7 32. Bxe5) 32. Bxe5 {[%emt 0:00:32][%cal Of4g6] White wants to mate with Ng6+!} fxe5 {[%emt 0:00:15] [#]} 33. Ng6+ $1 {[%emt 0:00:08][%mdl 512] White mates.} hxg6 {[%emt 0:00:16]} 34. Rh3+ {[%emt 0:00:04]} Kg8 {[%emt 0:00:48]} 35. Ba2+ {[%emt 0:00:07] Weighted Error Value: White=0.17 (very precise) /Black=0.63.  Loses game:     	---       	Black=1      Mistake:       	White=3     	Black=4      Inaccurate:     	White=1     	Black=6      OK:         	White=9     	Black=4      Best:        	White=2     	---        Strong:       	White=3     	---} 1-0

[Event "German Bundesliga 2024-25"]
[Site "Germany"]
[Date "2024.11.30"]
[Round "3.2"]
[White "Bluebaum, Matthias"]
[Black "Bartel, Mateusz"]
[Result "0-1"]
[Annotator "RC"]
[ECO "E14"]
[WhiteElo "2654"]
[BlackElo "2613"]
[PlyCount "206"]
[EventDate "2024.09.27"]
[EventType "team-tourn"]
[EventCountry "GER"]
[SourceTitle "playchess.com"]
[Source "ChessBase"]
[SourceQuality "1"]
[WhiteTeam "Deizisau"]
[BlackTeam "TU Dresden"]
[TimeControl "40/5400+30:1800+30"]

1. Nf3 {[%emt 0:00:06]} c5 {[%emt 0:00:21]} 2. c4 {[%emt 0:01:11]} b6 {[%emt 0:00:19]} 3. Nc3 {[%emt 0:03:19]} Bb7 {[%emt 0:00:16]} 4. e3 {[%emt 0:01:54]} Nf6 {[%emt 0:08:35]} 5. d4 {[%emt 0:00:11]} cxd4 {[%emt 0:00:07]} 6. exd4 {[%emt 0:00:04]} e6 {[%emt 0:00:05]} 7. Bd3 {[%emt 0:01:20]} Be7 {[%emt 0:01:08]} 8. O-O {[%emt 0:00:41]} O-O {[%emt 0:00:56]} 9. d5 {[%emt 0:02:10]} Na6 {[%emt 0:00:11]} 10. Bf4 {[%emt 0:05:38]} Nh5 {[%emt 0:00:30]} 11. Be3 {[%emt 0:03:06]} Nf6 {[%emt 0:00:03]} 12. Bf4 {[%emt 0:10:06]} Nh5 {[%emt 0:00:09]} 13. Be3 {[%emt 0:00:04]} Nf6 {[%emt 0:00:07]} 14. Be2 {[%emt 0:00:02]} Bb4 {[%emt 0:07:37]} 15. Bg5 {[%emt 0:05:10]} h6 {[%emt 0:02:10]} 16. Bh4 {[%emt 0:00:05]} Bxc3 {[%emt 0:00:08]} 17. bxc3 {[%emt 0:00:06]} Nc5 {[%emt 0:00:06]} 18. Nd4 {[%emt 0:04:35]} g5 {[%emt 0:05:22]} 19. Bg3 {[%emt 0:02:20]} Nfe4 {[%emt 0:00:04]} 20. Bf3 {[%emt 0:06:29]} Qf6 {[%emt 0:11:13]} 21. Qc2 {[%emt 0:14:53]} exd5 {[%emt 0:00:48]} 22. cxd5 {[%emt 0:01:31]} Bxd5 {[%emt 0:00:42]} 23. Rad1 {[%emt 0:03:04]} Rae8 {[%emt 0:04:47]} 24. Rfe1 {[%emt 0:04:37]} Bb7 {[%emt 0:06:56]} 25. Bg4 {[%emt 0:09:06]} Bc6 {[%emt 0:05:30]} 26. Re3 {[%emt 0:07:57]} Ba4 {[%emt 0:08:08]} 27. Nb3 {[%emt 0:00:01]} Nxg3 {[%emt 0:00:30]} 28. Rxg3 {[%emt 0:01:04]} Re5 {[%emt 0:03:37]} 29. Rf1 {[%emt 0:04:06]} Qf4 {[%emt 0:02:12]} 30. c4 {[%emt 0:04:56]} Ne4 {[%emt 0:10:47]} 31. Re3 {[%emt 0:01:18]} Qxg4 {[%emt 0:00:12]} 32. f3 {[%emt 0:00:03]} Qf4 {[%emt 0:00:05]} 33. Rfe1 {[%emt 0:03:43]} Rfe8 {[%emt 0:00:59]} 34. fxe4 {[%emt 0:00:01]} Qg4 {[%emt 0:00:59]} 35. Qd3 {[%emt 0:00:57]} Bc6 {[%emt 0:02:00]} 36. h3 {[%emt 0:00:08]} Qf4 {[%emt 0:02:12]} 37. Nd2 {[%emt 0:00:34]} R5e6 {[%emt 0:00:08]} 38. Rf1 {[%emt 0:01:18]} Qd6 {[%emt 0:00:21]} 39. Qe2 {[%emt 0:00:24]} Qd4 {[%emt 0:00:37]} 40. Nb3 {[%emt 0:01:39]} Qg7 {[%emt 0:07:48]} 41. Nd2 {[%emt 0:30:19]} Rf6 {[%emt 0:30:22]} 42. Rxf6 {[%emt 0:00:00]} Qxf6 {[%emt 0:00:00]} 43. e5 {[%emt 0:00:00]} Qf5 {[%emt 0:00:00]} 44. Nf1 {[%emt 0:00:00]} Qe6 {[%emt 0:00:00]} 45. a3 {[%emt 0:00:00]} Kf8 {[%emt 0:00:00]} 46. Qd3 {[%emt 0:00:00]} f5 {[%emt 0:00:00]} 47. exf6 {[%emt 0:00:00]} Qxf6 {[%emt 0:00:00]} 48. Rxe8+ {[%emt 0:00:00]} Kxe8 {[%emt 0:00:00]} 49. Ne3 {[%emt 0:00:00]} Kd8 {[%emt 0:00:00]} 50. Nc2 {[%emt 0:00:00]} Qb2 {[%emt 0:00:00]} 51. Ne3 {[%emt 0:00:00]} Kc7 {[%emt 0:00:00]} 52. Nd5+ {[%emt 0:00:00]} Kb7 {[%emt 0:00:00]} 53. Kh2 {[%emt 0:00:00]} Qe5+ {[%emt 0:00:00]} 54. Kg1 {[%emt 0:00:00]} h5 {[%emt 0:00:00]} 55. Nb4 {[%emt 0:00:00]} h4 {[%emt 0:00:00]} 56. Nc2 {[%emt 0:04:53]} Qb2 {[%emt 0:00:00]} 57. Ne3 {[%emt 0:02:03]} a5 {[%emt 0:00:42]} 58. Nd5 {[%emt 0:00:25]} Qe5 {[%emt 0:00:15]} 59. Kf1 {[%emt 0:01:14]} b5 {[%emt 0:00:57]} 60. Ne3 {[%emt 0:00:04]} Qb2 {[%emt 0:04:41]} 61. Ke1 {[%emt 0:00:50]} b4 {[%emt 0:00:19]} 62. axb4 {[%emt 0:00:07]} axb4 {[%emt 0:00:25]} 63. Nf5 {[%emt 0:00:35]} Qxg2 {[%emt 0:01:10]} 64. Qe3 {[%emt 0:00:22]} Ka6 {[%emt 0:00:42]} 65. Qc5 {[%emt 0:00:45]} Qe4+ {[%emt 0:00:47]} 66. Kd2 {[%emt 0:00:13]} Qf4+ {[%emt 0:00:10]} 67. Ke1 {[%emt 0:00:12]} Qc1+ {[%emt 0:00:16]} 68. Ke2 {[%emt 0:00:28]} Qc2+ {[%emt 0:00:09]} 69. Ke3 {[%emt 0:00:16]} Qc3+ {[%emt 0:01:19]} 70. Ke2 {[%emt 0:00:10]} b3 {[%emt 0:02:19]} 71. Nd4 {[%emt 0:00:12]} Qxh3 {[%emt 0:05:01]} 72. Nb5 {[%emt 0:01:24]} Qe6+ {[%emt 0:02:02]} 73. Kd2 {[%emt 0:00:59]} Bxb5 {[%emt 0:00:07]} 74. Qxb5+ {[%emt 0:00:57]} Ka7 {[%emt 0:00:01]} 75. Qa4+ {[%emt 0:00:13]} Kb7 {[%emt 0:00:13]} 76. Qxb3+ {[%emt 0:00:12]} Kc7 {[%emt 0:00:12]} 77. Qb5 {[%emt 0:00:15]} Qd6+ {[%emt 0:01:40]} 78. Ke2 {[%emt 0:00:12]} Qf4 {[%emt 0:00:04]} 79. c5 {[%emt 0:00:21]} Kd8 {[%emt 0:00:05]} 80. c6 {[%emt 0:00:33]} Qe4+ {[%emt 0:01:30]} 81. Kf2 {[%emt 0:00:19]} Qc2+ {[%emt 0:00:29]} 82. Kf1 {[%emt 0:00:55]} Qc1+ {[%emt 0:00:07]} 83. Ke2 {[%emt 0:00:15]} Qc2+ {[%emt 0:01:55]} 84. Kf1 {[%emt 0:00:08]} Qd1+ {[%emt 0:00:17]} 85. Kg2 {[%emt 0:00:59]} Qg4+ {[%emt 0:00:06]} 86. Kf2 {[%emt 0:01:31]} Qd4+ {[%emt 0:02:08]} 87. Ke2 {[%emt 0:00:23]} Qe4+ {[%emt 0:00:06]} 88. Kf2 {[%emt 0:00:05]} dxc6 {[%emt 0:00:19]} 89. Qxg5+ {[%emt 0:00:21]} Kc7 {[%emt 0:00:28]} 90. Qc5 {[%emt 0:00:50]} Kd7 {[%emt 0:00:20]} 91. Qh5 {[%emt 0:01:08]} Kd6 {[%emt 0:01:06]} 92. Qh6+ {[%emt 0:00:10]} Kd5 {[%emt 0:00:12]} 93. Qg5+ {[%emt 0:00:10]} Kc4 {[%emt 0:00:12]} 94. Qa5 {[%emt 0:00:44]} Qd4+ {[%emt 0:00:25]} 95. Kf1 {[%emt 0:00:10]} Kb3 {[%emt 0:00:23]} 96. Qa8 {[%emt 0:00:42]} Qd3+ {[%emt 0:00:54]} 97. Kg2 {[%emt 0:00:17]} c5 {[%emt 0:00:09]} 98. Qb7+ {[%emt 0:00:43]} Kc2 {[%emt 0:00:04]} 99. Qe7 {[%emt 0:00:10]} Qg3+ {[%emt 0:01:26]} 100. Kh1 {[%emt 0:00:05]} Qf3+ {[%emt 0:00:03]} 101. Kh2 {[%emt 0:00:08]} Qf4+ {[%emt 0:01:19]} 102. Kg2 {[%emt 0:00:35]} c4 {[%emt 0:00:15]} 103. Qb4 {[%emt 0:00:07]} Qd2+ {[%emt 0:00:13]} 0-1

[Event "German Bundesliga 2024-25"]
[Site "Germany"]
[Date "2024.11.30"]
[Round "3.2"]
[White "Polak, Tomas"]
[Black "Areshchenko, Alexander"]
[Result "0-1"]
[Annotator "RC"]
[ECO "D85"]
[WhiteElo "2470"]
[BlackElo "2606"]
[PlyCount "62"]
[EventDate "2024.09.27"]
[EventType "team-tourn"]
[EventCountry "GER"]
[SourceTitle "playchess.com"]
[Source "ChessBase"]
[SourceQuality "1"]
[WhiteTeam "Heimbach-Weis-Neuwied"]
[BlackTeam "Werder Bremen"]
[TimeControl "40/5400+30:1800+30"]

1. d4 {[%emt 0:00:04]} Nf6 {[%emt 0:00:04]} 2. c4 {[%emt 0:00:08]} g6 {[%emt 0:00:05]} 3. Nc3 {[%emt 0:00:13]} d5 {[%emt 0:00:05]} 4. cxd5 {[%emt 0:00:11]} Nxd5 {[%emt 0:00:05]} 5. e4 {[%emt 0:00:11]} Nxc3 {[%emt 0:00:04]} 6. bxc3 {[%emt 0:00:04]} Bg7 {[%emt 0:00:03]} 7. Be3 {[%emt 0:00:18]} c5 {[%emt 0:00:17]} 8. Rc1 {[%emt 0:00:18]} Qa5 {[%emt 0:00:59]} 9. Qd2 {[%emt 0:00:28]} cxd4 {[%emt 0:00:40]} 10. cxd4 {[%emt 0:00:06]} Qxd2+ {[%emt 0:00:10]} 11. Bxd2 {[%emt 0:00:17]} O-O {[%emt 0:00:53]} 12. Nf3 {[%emt 0:00:29]} Bg4 {[%emt 0:04:32]} 13. Be3 {[%emt 0:01:34]} Nc6 {[%emt 0:11:36]} 14. d5 {[%emt 0:03:54]} Bxf3 {[%emt 0:15:01]} 15. gxf3 {[%emt 0:00:48]} Nd4 {[%emt 0:00:10]} 16. Bh3 {[%emt 0:01:04]} f5 {[%emt 0:06:23]} 17. Rc7 {[%emt 0:03:02]} Nxf3+ {[%emt 0:14:24]} 18. Ke2 {[%emt 0:00:49]} Nd4+ {[%emt 0:01:14]} 19. Kd3 {[%emt 0:02:47]} fxe4+ {[%emt 0:08:04]} 20. Kxe4 {[%emt 0:03:54]} Nf5 {[%emt 0:01:45]} 21. Bxf5 {[%emt 0:04:18]} gxf5+ {[%emt 0:02:52]} 22. Kf3 {[%emt 0:00:43]} Bf6 {[%emt 0:10:19]} 23. Rxb7 {[%emt 0:03:49]} Rfd8 {[%emt 0:02:24]} 24. Rd1 {[%emt 0:03:30]} a5 {[%emt 0:04:55]} 25. Kf4 {[%emt 0:12:47]} a4 {[%emt 0:01:50]} 26. Kxf5 {[%emt 0:11:25]} Ra5 {[%emt 0:00:06]} 27. Ke4 {[%emt 0:01:39]} a3 {[%emt 0:00:18]} 28. Rd3 {[%emt 0:23:12]} Ra4+ {[%emt 0:00:59]} 29. Kf3 {[%emt 0:04:06]} Rh4 {[%emt 0:02:41]} 30. Bf4 {[%emt 0:03:30]} e5 {[%emt 0:00:39]} 31. Bxe5 {[%emt 0:14:20]} Bxe5 {[%emt 0:00:07]} 0-1

[Event "German Bundesliga 2024-25"]
[Site "Germany"]
[Date "2024.11.30"]
[Round "3.2"]
[White "Delchev, Aleksander"]
[Black "Brkic, Ante"]
[Result "1/2-1/2"]
[Annotator "TA"]
[ECO "B51"]
[WhiteElo "2464"]
[BlackElo "2608"]
[PlyCount "43"]
[EventDate "2024.09.27"]
[EventType "team-tourn"]
[EventCountry "GER"]
[SourceTitle "playchess.com"]
[Source "ChessBase"]
[SourceQuality "1"]
[WhiteTeam "Deggendorf"]
[BlackTeam "Kirchweyhe"]
[TimeControl "40/5400+30:1800+30"]

{[%evp 12,43,12,21,10,6,8,0,33,23,18,31,2,0,0,0,6,2,0,0,7,2,6,0,0,0,2,0,21,0,18,22,25,0]} 1. e4 {[%emt 0:00:11]} c5 {[%emt 0:00:04]} 2. Nf3 {[%emt 0:00:06]} d6 {[%emt 0:00:05]} 3. Bb5+ {[%emt 0:00:32]} Nd7 {[%emt 0:00:56]} 4. c3 {[%emt 0:00:48]} Ngf6 {[%emt 0:01:05]} 5. Qe2 {[%emt 0:00:18]} a6 {[%emt 0:02:39]} 6. Ba4 {[%emt 0:00:07]} b5 {[%emt 0:00:19]} 7. Bc2 {[%emt 0:00:07]} Bb7 {[%emt 0:00:14]} 8. d4 {[%emt 0:00:07]} e6 {[%emt 0:00:20]} 9. a4 {[%emt 0:00:32]} bxa4 {[%emt 0:08:45] The position is equal.} 10. d5 {[%emt 0:10:48]} exd5 {[%emt 0:21:34]} 11. exd5+ {[%emt 0:00:05]} (11. Bxa4 $2 dxe4 12. O-O Be7 $17) 11... Qe7 {[%emt 0:00:06]} 12. Qxe7+ {[%emt 0:03:41]} ({Of course not} 12. Rxa4 Nb6 $17 (12... Nxd5 $2 {is the wrong capture.} 13. Re4 $18) (12... Bxd5 13. Be3 $15) (12... Qxe2+ 13. Kxe2 Be7 14. Re1 $15)) 12... Bxe7 {[%emt 0:02:35]} 13. c4 {[%emt 0:00:03][%cal Ob1c3]} Nb6 {[%emt 0:01:00]} 14. Bxa4+ {[%emt 0:05:47]} Nxa4 {[%emt 0:02:34]} 15. Rxa4 {[%emt 0:00:05]} O-O {[%emt 0:19:32]} 16. O-O {[%emt 0:06:02]} Bc8 {[%emt 0:05:13]} 17. b3 {[%emt 0:05:09]} Re8 {[%emt 0:03:21]} 18. Re1 {[%emt 0:06:10]} Bd7 {[%emt 0:07:13]} 19. Ra2 {[%emt 0:01:54]} a5 {[%emt 0:01:56]} 20. Bf4 {[%emt 0:23:59]} Bf8 {[%emt 0:08:00]} 21. Rxe8 {[%emt 0:01:47]} Nxe8 {[%emt 0:00:03]} 22. Nc3 {[%emt 0:10:55] A rather calm draw.   Weighted Error Value: White=0.02 (flawless) /Black=0.07 (flawless) .  Inaccurate:     	---       	Black=1      OK:         	White=6     	Black=6      Best:        	White=1     	---} 1/2-1/2